bitfinex-derivatives/quotes_BTCF0:USTF0_20250528
["timestamp","ask_amount","ask_price","bid_price","bid_amount"]
[1748475846199,1.47654002,108010.0,108000.0,0.29033886]
[1748475846393,1.35305149,108010.0,108000.0,0.29033886]
[1748475846689,1.35305149,108010.0,108000.0,0.3028585]
[1748475846888,1.35305149,108010.0,108000.0,0.30286432]
[1748475847194,1.35302684,108010.0,108000.0,0.30286432]
[1748475847397,0.79974684,108010.0,108000.0,0.30286421]
[1748475847596,1.35286684,108010.0,108000.0,0.30286421]
[1748475848598,1.35286684,108010.0,107990.0,0.04847]
[1748475848599,0.1851317,108000.0,107990.0,0.00277]
[1748475848791,0.48055501,108000.0,107990.0,0.00277]
[1748475848994,0.88116023,108000.0,107990.0,0.00277]
[1748475849195,0.88116023,108000.0,107990.0,0.08787]
[1748475849502,0.88128023,108000.0,107990.0,0.08787]
[1748475849989,0.89728087,108000.0,107990.0,0.09787]
[1748475850804,1.25808087,108000.0,107990.0,0.05547]
[1748475851104,0.89728087,108000.0,107990.0,0.05547]
[1748475851997,1.0207694,108000.0,107990.0,0.05547]
[1748475853807,1.42478468,108000.0,107990.0,0.05547]
[1748475854205,1.17780762,108000.0,107990.0,0.05547]
[1748475854403,1.30129615,108000.0,107990.0,0.05547]
[1748475856200,0.94049615,108000.0,107990.0,0.05547]
[1748475857292,1.30129615,108000.0,107990.0,0.05547]
[1748475857492,2.47522468,108000.0,107990.0,0.01277]
[1748475857704,2.53293394,108000.0,107990.0,0.01277]
[1748475857907,2.53293394,108000.0,107990.0,0.01]
[1748475858307,2.48971866,108000.0,107990.0,0.01]
[1748475858512,2.53971866,108000.0,107990.0,0.01]
[1748475858809,0.1851489,107990.0,107980.0,0.04193886]
[1748475859018,0.86278738,107990.0,107980.0,0.00013886]
[1748475859200,0.96368065,107990.0,107980.0,0.00013886]
[1748475860015,0.85540065,107990.0,107980.0,0.00713886]
[1748475860307,1.30906738,107990.0,107980.0,0.01413886]
[1748475860502,1.30906738,107990.0,107980.0,0.06790831]
[1748475860694,1.30918738,107990.0,107980.0,0.11177831]
[1748475860894,1.30906738,107990.0,107980.0,0.11177831]
[1748475861111,0.94838738,107990.0,107980.0,0.45980886]
[1748475861413,0.94838738,107990.0,107980.0,0.47255893]
[1748475861710,0.39482738,107990.0,107980.0,0.47255893]
[1748475861898,0.94806738,107990.0,107980.0,0.47250229]
[1748475862511,0.94806738,107990.0,107980.0,0.11169878]
[1748475862812,0.94802738,107990.0,107980.0,0.11173861]
[1748475863008,0.94802738,107990.0,107980.0,0.11171745]
[1748475863507,0.99202738,107990.0,107980.0,0.11171745]
[1748475863698,0.99182738,107990.0,107980.0,0.11171745]
[1748475863898,0.99182738,107990.0,107980.0,0.11174406]
[1748475864113,0.99182738,107990.0,107980.0,0.11174405]
[1748475864512,1.04952065,107990.0,107980.0,0.11174405]
[1748475865008,1.41032065,107990.0,107980.0,0.07074405]
[1748475865212,1.41032065,107990.0,107980.0,0.05800886]
[1748475865414,1.41032065,107990.0,107980.0,0.07081297]
[1748475865909,0.45252065,107990.0,107980.0,0.11428232]
[1748475866110,0.94770738,107990.0,107980.0,0.16084079]
[1748475866314,0.27121885,107990.0,107980.0,0.29939529]
[1748475866611,0.11116,107990.0,107980.0,0.88633576]
[1748475866814,0.002,107990.0,107980.0,0.97201972]
[1748475867000,1.3446118,108000.0,107990.0,0.185149]
[1748475867203,1.3446118,108000.0,107990.0,0.95818142]
[1748475867403,1.2355718,108000.0,107990.0,0.95818142]
[1748475867705,1.2356918,108000.0,107990.0,0.64954389]
[1748475868009,1.2786918,108000.0,107990.0,0.83469279]
[1748475868403,1.2786918,108000.0,107990.0,0.74893545]
[1748475868601,1.2786918,108000.0,107990.0,0.75293545]
[1748475868818,1.2796918,108000.0,107990.0,0.75293545]
[1748475869510,1.2806918,108000.0,107990.0,0.75693545]
[1748475870111,1.2806918,108000.0,107990.0,0.79793545]
[1748475871517,1.2806918,108000.0,107990.0,0.43713545]
[1748475871718,1.2806918,108000.0,107990.0,1.15873545]
[1748475872520,1.2806918,108000.0,107990.0,1.93713545]
[1748475872911,0.2302518,108000.0,107990.0,2.65873545]
[1748475874613,0.35374033,108000.0,107990.0,2.47358655]
[1748475874812,0.35374033,108000.0,107990.0,2.11278655]
[1748475875313,0.35374033,108000.0,107990.0,1.9973]
[1748475875716,0.35374033,108000.0,107990.0,2.04393177]
[1748475875921,0.35374033,108000.0,107990.0,0.18313177]
[1748475876115,0.52142886,108000.0,107990.0,0.13903177]
[1748475876528,0.44121849,108000.0,107990.0,0.0924]
[1748475877415,0.39794033,108000.0,107990.0,0.0924]
[1748475877726,0.52142886,108000.0,107990.0,0.0924]
[1748475877933,0.39794033,108000.0,107990.0,0.0924]
[1748475878620,0.52142886,108000.0,107990.0,0.0924]
[1748475879422,0.52142886,108000.0,107990.0,0.13903177]
[1748475879825,0.56470702,108000.0,107990.0,0.13903177]
[1748475880015,0.92550702,108000.0,107990.0,0.10493156]
[1748475880216,0.92550702,108000.0,107990.0,0.10491947]
[1748475880418,0.92550702,108000.0,107990.0,0.0514]
[1748475880624,0.92550702,108000.0,107990.0,0.06393626]
[1748475881222,0.92550702,108000.0,107990.0,0.06393982]
[1748475881627,0.92550702,108000.0,107990.0,0.06394]
[1748475882126,0.92550702,108000.0,107990.0,0.06394092]
[1748475882322,1.36806702,108000.0,107990.0,0.06394092]
[1748475883029,1.36806702,108000.0,107990.0,0.06395589]
[1748475883216,1.36806702,108000.0,107990.0,0.06395042]
[1748475883622,1.36806702,108000.0,107990.0,0.06395036]
[1748475884630,1.36806702,108000.0,107990.0,0.06672036]
[1748475884928,1.36806702,108000.0,107990.0,0.06672241]
[1748475885121,1.36806702,108000.0,107990.0,0.02332241]
[1748475885423,1.36806702,108000.0,107990.0,0.02332173]
[1748475885920,1.42576029,108000.0,107990.0,0.02332173]
[1748475887225,1.42576029,108000.0,107990.0,0.02344017]
[1748475887425,1.42576029,108000.0,107990.0,0.01077]
[1748475887728,1.42576029,108000.0,107990.0,0.02344017]
[1748475888120,1.42576029,108000.0,107990.0,0.02350738]
[1748475888321,1.42576029,108000.0,107990.0,0.02350927]
[1748475888522,1.42576029,108000.0,107990.0,0.01077]
[1748475888717,1.42575849,108000.0,107990.0,0.0235129]
[1748475888923,1.38248213,108000.0,107990.0,0.0235129]
[1748475889118,1.42575856,108000.0,107990.0,0.0235129]
[1748475889323,0.69294507,108000.0,107990.0,0.0235129]
[1748475889626,1.42576161,108000.0,107990.0,0.0235129]
[1748475889820,1.47576161,108000.0,107990.0,0.0235129]
[1748475890019,1.43248213,108000.0,107990.0,0.02349369]
[1748475890215,1.43248213,108000.0,107990.0,0.0127238]
[1748475890419,0.1851489,107990.0,107980.0,0.09027063]
[1748475890622,0.94316073,107990.0,107980.0,0.09027063]
[1748475891823,0.94416073,107990.0,107980.0,0.09627063]
[1748475892224,0.8206722,107990.0,107980.0,0.09627063]
[1748475892435,0.94516073,107990.0,107980.0,0.10027063]
[1748475892831,0.94516325,107990.0,107980.0,0.10027063]
[1748475894735,0.35183472,107990.0,107980.0,0.10027063]
[1748475894939,0.2252489,107990.0,107980.0,0.81062526]
[1748475895135,0.2252489,107990.0,107980.0,0.62170271]
[1748475895136,0.7769689,107990.0,107980.0,0.62170271]
[1748475895338,0.7768489,107990.0,107980.0,0.80686881]
[1748475895633,0.3344089,107990.0,107980.0,0.80686881]
[1748475895838,0.3342889,107990.0,107980.0,0.85351335]
[1748475896022,0.3344089,107990.0,107980.0,0.85351335]
[1748475896226,0.3344089,107990.0,107980.0,0.80686881]
[1748475896439,0.3344089,107990.0,107980.0,0.85351714]
[1748475896832,0.3344089,107990.0,107980.0,2.30686881]
[1748475897539,0.3344089,107990.0,107980.0,0.80686881]
[1748475898039,0.3344089,107990.0,107980.0,0.68338028]
[1748475898226,0.2253689,107990.0,107980.0,0.74055184]
[1748475898432,0.3337289,107990.0,107980.0,0.74055184]
[1748475900541,0.45721743,107990.0,107980.0,0.74055184]
[1748475900839,0.45721743,107990.0,107980.0,0.740572]
[1748475901535,0.3337289,107990.0,107980.0,0.740572]
[1748475902139,0.3337289,107990.0,107980.0,0.79888699]
[1748475903436,0.1872689,107990.0,107980.0,0.92237552]
[1748475903633,0.00212,107990.0,107980.0,1.10208403]
[1748475903838,0.1871489,107990.0,107980.0,1.00066981]
[1748475904044,0.1872689,107990.0,107980.0,0.94235482]
[1748475904434,0.1871489,107990.0,107980.0,0.94235482]
[1748475904639,0.1872689,107990.0,107980.0,0.94235482]
[1748475904845,0.1872689,107990.0,107980.0,0.96235482]
[1748475905347,0.1872689,107990.0,107980.0,2.46235482]
[1748475905852,0.1872689,107990.0,107980.0,2.53212774]
[1748475906038,0.1872689,107990.0,107980.0,2.4463704]
[1748475907445,0.1871489,107990.0,107980.0,2.5322298]
[1748475907653,0.00212,107990.0,107980.0,2.55997976]
[1748475907946,0.1872689,107990.0,107980.0,2.55997976]
[1748475908351,0.1872689,107990.0,107980.0,2.25310895]
[1748475908553,0.1872689,107990.0,107980.0,2.37659748]
[1748475909550,0.1872689,107990.0,107980.0,2.46242618]
[1748475909850,0.00212,107990.0,107980.0,2.46242618]
[1748475910047,0.00212,107990.0,107980.0,2.37659748]
[1748475912450,0.00212,107990.0,107980.0,2.46239358]
[1748475912758,0.1872688,107990.0,107980.0,2.36978959]
[1748475913154,0.1872688,107990.0,107980.0,2.24630106]
[1748475913346,0.1872688,107990.0,107980.0,2.81226959]
[1748475913547,0.2276688,107990.0,107980.0,2.68878106]
[1748475914955,0.2276688,107990.0,107980.0,2.74711144]
[1748475915250,0.35115733,107990.0,107980.0,2.09946534]
[1748475915555,0.35115733,107990.0,107980.0,0.69769394]
[1748475915753,0.53937733,107990.0,107980.0,0.47162804]
[1748475915959,0.53937733,107990.0,107980.0,0.15576879]
[1748475916157,0.53937733,107990.0,107980.0,0.11226879]
[1748475916453,0.90017733,107990.0,107980.0,0.0694154]
[1748475916658,0.90017733,107990.0,107980.0,0.06942686]
[1748475916847,0.94348278,107990.0,107980.0,0.06942821]
[1748475917349,0.94348278,107990.0,107980.0,0.06943072]
[1748475918059,0.94348278,107990.0,107980.0,0.06943098]
[1748475918259,0.81999425,107990.0,107980.0,0.06943098]
[1748475918458,0.94348278,107990.0,107980.0,0.06943098]
[1748475918961,0.94348278,107990.0,107980.0,0.05682551]
[1748475919151,0.94348278,107990.0,107980.0,0.06942952]
[1748475919459,0.94348278,107990.0,107980.0,0.06942997]
[1748475919761,0.79185733,107990.0,107980.0,0.02274332]
[1748475920059,1.34265733,107990.0,107980.0,0.02274332]
[1748475920248,1.34265733,107990.0,107980.0,0.02274483]
[1748475920451,1.34265733,107990.0,107980.0,0.05683351]
[1748475920655,1.34265733,107990.0,107980.0,0.0694394]
[1748475920854,1.34265733,107990.0,107980.0,0.06943992]
[1748475921054,1.34265733,107990.0,107980.0,0.02274527]
[1748475921357,1.38596666,107990.0,107980.0,0.06944185]
[1748475921658,1.44365993,107990.0,107980.0,0.06944185]
[1748475921847,1.44365993,107990.0,107980.0,0.06956224]
[1748475922053,1.44365993,107990.0,107980.0,0.05683544]
[1748475922251,1.44365993,107990.0,107980.0,0.06956605]
[1748475922650,1.3201714,107990.0,107980.0,0.06956605]
[1748475922850,1.44365993,107990.0,107980.0,0.06956605]
[1748475923249,1.44365993,107990.0,107980.0,0.02286947]
[1748475923762,1.44365993,107990.0,107980.0,0.02288926]
[1748475923950,1.44365993,107990.0,107980.0,0.05790587]
[1748475924160,1.3201714,107990.0,107980.0,0.05790587]
[1748475924359,1.44365993,107990.0,107980.0,0.05790443]
[1748475924869,1.44365993,107990.0,107980.0,0.0578969]
[1748475925355,1.38596666,107990.0,107980.0,0.0578969]
[1748475925762,1.38600666,107990.0,107980.0,0.0578969]
[1748475927259,1.38600666,107990.0,107980.0,0.05787572]
[1748475927563,1.26251813,107990.0,107980.0,0.05787492]
[1748475927764,1.43600666,107990.0,107980.0,0.05787492]
[1748475928469,1.43600666,107990.0,107980.0,0.05788531]
[1748475928657,1.43597911,107990.0,107980.0,0.05788531]
[1748475928857,1.43597911,107990.0,107980.0,0.05788528]
[1748475929249,1.43597911,107990.0,107980.0,0.05788254]
[1748475929453,1.49367238,107990.0,107980.0,0.05788254]
[1748475929861,1.49367238,107990.0,107980.0,0.02412654]
[1748475930065,1.53697927,107990.0,107980.0,3e-08]
[1748475930270,1.53697927,107990.0,107970.0,0.04946658]
[1748475930271,1.567923,107990.0,107970.0,0.04946658]
[1748475930563,1.17671869,107980.0,107970.0,0.00277]
[1748475930773,1.28060831,107980.0,107970.0,0.04946658]
[1748475930952,1.28060831,107980.0,107970.0,0.00277]
[1748475931155,1.28060637,107980.0,107970.0,0.00277]
[1748475931663,1.28060637,107980.0,107970.0,0.00677]
[1748475932166,0.83812637,107980.0,107970.0,0.00677]
[1748475932369,0.83812637,107980.0,107970.0,0.00777]
[1748475932370,1.38892637,107980.0,107970.0,0.00777]
[1748475932670,0.83811199,107980.0,107970.0,0.00777]
[1748475932864,1.38891199,107980.0,107970.0,0.00677]
[1748475933058,1.39091199,107980.0,107970.0,0.00777]
[1748475933261,1.39091199,107980.0,107970.0,0.00377]
[1748475933456,1.39291199,107980.0,107970.0,0.00377]
[1748475934870,2.44355199,107980.0,107970.0,0.00377]
[1748475935068,2.5012509,107980.0,107970.0,0.00377]
[1748475935668,2.37776237,107980.0,107970.0,0.00377]
[1748475935872,2.50123484,107980.0,107970.0,0.00377]
[1748475936062,2.45799304,107980.0,107970.0,0.00377]
[1748475938677,2.58148157,107980.0,107970.0,0.00377]
[1748475938872,2.58248157,107980.0,107970.0,0.00277]
[1748475939460,2.58248157,107980.0,107960.0,0.00013886]
[1748475939461,0.1851827,107970.0,107960.0,0.00013886]
[1748475939765,1.01025867,107970.0,107960.0,0.00013886]
[1748475940465,1.01025867,107970.0,107960.0,6e-08]
[1748475940872,0.185217,107950.0,107940.0,0.11849826]
[1748475941075,0.85954553,107950.0,107940.0,0.07562]
[1748475941376,0.96774553,107950.0,107940.0,0.07562]
[1748475942170,0.96774553,107950.0,107940.0,0.08877941]
[1748475942365,0.844257,107950.0,107940.0,0.08877941]
[1748475942571,0.845257,107950.0,107940.0,0.08877941]
[1748475942772,0.96874553,107950.0,107940.0,0.08877941]
[1748475942976,0.96874553,107950.0,107940.0,0.0887823]
[1748475943366,0.96874553,107950.0,107940.0,0.07562]
[1748475943565,0.96974553,107950.0,107940.0,0.07562]
[1748475943766,0.96974553,107950.0,107940.0,0.0887851]
[1748475944974,0.96974553,107950.0,107940.0,0.08878582]
[1748475945176,0.96974553,107950.0,107940.0,0.08878584]
[1748475946167,1.37381116,107950.0,107940.0,0.01328584]
[1748475946370,1.37381116,107950.0,107940.0,0.01338193]
[1748475946668,1.37381116,107950.0,107940.0,0.04958193]
[1748475946873,1.37381116,107950.0,107940.0,0.04959837]
[1748475947170,0.81826263,107950.0,107940.0,0.03632]
[1748475947370,0.94187116,107950.0,107940.0,0.08814865]
[1748475947572,0.94187116,107950.0,107940.0,0.07492]
[1748475947765,0.94187116,107950.0,107940.0,0.08813247]
[1748475947966,0.94187116,107950.0,107940.0,0.07492]
[1748475948163,0.94191116,107950.0,107940.0,0.07492]
[1748475948472,0.94179116,107950.0,107940.0,0.07492]
[1748475948666,0.94191116,107950.0,107940.0,0.08813371]
[1748475948873,0.94191116,107950.0,107940.0,0.07492]
[1748475949070,0.90264553,107950.0,107940.0,0.44892482]
[1748475949271,0.90264553,107950.0,107940.0,0.41032482]
[1748475949674,0.90264553,107950.0,107940.0,0.44697486]
[1748475949872,0.90268553,107950.0,107940.0,0.44697481]
[1748475950270,0.90668553,107950.0,107940.0,0.44697481]
[1748475950470,0.90668553,107950.0,107940.0,0.44697484]
[1748475950681,0.90668553,107950.0,107940.0,0.44697524]
[1748475951082,0.90668553,107950.0,107940.0,0.44698104]
[1748475951481,0.90668553,107950.0,107940.0,0.43382]
[1748475951984,0.90668553,107950.0,107940.0,0.44697955]
[1748475952684,0.90668553,107950.0,107940.0,0.04947955]
[1748475952870,0.98584968,107950.0,107940.0,0.04947955]
[1748475953070,0.98584968,107950.0,107940.0,0.08517955]
[1748475953571,0.98585895,107950.0,107940.0,0.08517955]
[1748475954381,0.98585895,107950.0,107940.0,0.08519767]
[1748475954575,0.98585895,107950.0,107940.0,0.08520113]
[1748475955078,0.98585895,107950.0,107940.0,0.08520322]
[1748475955286,0.98585895,107950.0,107940.0,0.08520499]
[1748475956076,0.98585895,107950.0,107940.0,0.07202]
[1748475956278,0.98585895,107950.0,107940.0,0.08520895]
[1748475957091,0.98585895,107950.0,107940.0,0.08521086]
[1748475957287,0.31141042,107950.0,107940.0,0.08521086]
[1748475957596,0.98588169,107950.0,107940.0,0.08521086]
[1748475957890,0.98588169,107950.0,107940.0,0.08521354]
[1748475958188,0.98588169,107950.0,107940.0,0.08521352]
[1748475958384,0.86239316,107950.0,107940.0,0.08521352]
[1748475958575,0.94998169,107950.0,107940.0,0.08521356]
[1748475959482,0.94998169,107950.0,107940.0,0.08521998]
[1748475959985,0.98598169,107950.0,107940.0,0.08521998]
[1748475960188,0.98598169,107950.0,107940.0,0.08522791]
[1748475960489,0.98598169,107950.0,107940.0,0.08523191]
[1748475961091,0.98598169,107950.0,107940.0,0.08517121]
[1748475961092,0.82645316,107950.0,107940.0,0.08517121]
[1748475961279,0.94994169,107950.0,107940.0,0.08517121]
[1748475961684,0.98684169,107950.0,107940.0,0.0494713]
[1748475961881,1.34764169,107950.0,107940.0,0.0120968]
[1748475962182,1.36204444,107950.0,107940.0,0.0120968]
[1748475962380,0.185234,107940.0,107930.0,0.11750744]
[1748475962581,0.42396132,107940.0,107930.0,0.11750744]
[1748475963289,0.90824985,107940.0,107930.0,0.16420402]
[1748475963495,0.90824985,107940.0,107930.0,0.0751826]
[1748475963693,0.1852512,107930.0,107920.0,0.08914142]
[1748475963988,0.1852512,107930.0,107920.0,0.04244484]
[1748475963989,1.38880727,107930.0,107920.0,0.04244484]
[1748475964187,1.44650618,107930.0,107920.0,0.04256484]
[1748475964380,1.44650618,107930.0,107910.0,0.13715592]
[1748475964381,0.1852683,107920.0,107910.0,0.13715592]
[1748475964582,0.34685683,107920.0,107910.0,0.12666332]
[1748475964889,0.34685683,107920.0,107910.0,0.1838525]
[1748475965084,0.34685683,107920.0,107910.0,0.5805525]
[1748475965392,0.34685683,107920.0,107910.0,0.16256332]
[1748475965592,0.2916683,107920.0,107910.0,0.16256332]
[1748475965789,0.42415683,107920.0,107910.0,0.16256332]
[1748475965987,0.43315683,107920.0,107910.0,0.16256332]
[1748475966593,0.43315683,107920.0,107910.0,0.16268332]
[1748475966793,0.2750683,107920.0,107910.0,0.16268332]
[1748475966993,0.39855683,107920.0,107910.0,0.19638332]
[1748475967696,0.43255683,107920.0,107910.0,0.19638332]
[1748475968280,0.43255683,107920.0,107910.0,0.51461658]
[1748475968492,0.43255683,107920.0,107910.0,0.55717265]
[1748475969882,0.96018282,107920.0,107910.0,0.04267607]
[1748475970084,0.1852854,107910.0,107900.0,0.39768]
[1748475970286,0.1852854,107910.0,107900.0,0.43378]
[1748475970287,1.09751763,107910.0,107900.0,0.43378]
[1748475970491,0.9741491,107910.0,107900.0,0.43378]
[1748475970695,0.9741491,107910.0,107900.0,0.4339]
[1748475971498,0.9821491,107910.0,107900.0,0.0731]
[1748475971891,0.9891491,107910.0,107900.0,0.0731]
[1748475972492,0.98911785,107910.0,107900.0,0.0731]
[1748475972885,0.86562932,107910.0,107900.0,0.0731]
[1748475973185,0.98915785,107910.0,107900.0,0.0731]
[1748475973394,0.94585393,107910.0,107900.0,0.0731]
[1748475973594,0.3455254,107910.0,107900.0,0.6192026]
[1748475973787,0.46901393,107910.0,107900.0,0.6192026]
[1748475973987,0.46901393,107910.0,107900.0,0.63259681]
[1748475974190,0.46901393,107910.0,107900.0,0.63256482]
[1748475974390,0.46901393,107910.0,107900.0,0.44726222]
[1748475974694,0.46901393,107910.0,107900.0,0.44726236]
[1748475974895,0.46901393,107910.0,107900.0,0.49395894]
[1748475975295,0.3455254,107910.0,107900.0,0.67925738]
[1748475975489,0.3455254,107910.0,107900.0,0.50395478]
[1748475975685,0.46901393,107910.0,107900.0,0.50395478]
[1748475976096,0.46901393,107910.0,107900.0,0.49390232]
[1748475977504,0.46901393,107910.0,107900.0,0.49390259]
[1748475977701,0.3455254,107910.0,107900.0,0.49390259]
[1748475977891,0.46901393,107910.0,107900.0,0.49390265]
[1748475978294,0.46901393,107910.0,107900.0,0.44720607]
[1748475978800,0.46901393,107910.0,107900.0,0.63251246]
[1748475979001,0.46901393,107910.0,107900.0,0.44720986]
[1748475979194,0.46901393,107910.0,107900.0,0.63251246]
[1748475979395,0.46901393,107910.0,107900.0,0.63251055]
[1748475980099,0.36069393,107910.0,107900.0,0.63250903]
[1748475980310,0.46901393,107910.0,107900.0,0.63250903]
[1748475980495,0.46901393,107910.0,107900.0,0.68962396]
[1748475980688,0.2004054,107910.0,107900.0,0.6998637]
[1748475980893,0.2004054,107910.0,107900.0,0.75817106]
[1748475981089,0.2004054,107910.0,107900.0,0.91600521]
[1748475981294,0.2004054,107910.0,107900.0,0.93656898]
[1748475981690,0.2004054,107910.0,107900.0,2.43656898]
[1748475982108,0.2004054,107910.0,107900.0,2.43658377]
[1748475982407,0.2004054,107910.0,107900.0,2.47820399]
[1748475982597,0.2004054,107910.0,107900.0,2.47820427]
[1748475983007,0.2004054,107910.0,107900.0,2.43658024]
[1748475984194,0.2362054,107910.0,107900.0,2.87926153]
[1748475984402,0.2362054,107910.0,107900.0,2.92090089]
[1748475984597,0.35969393,107910.0,107900.0,2.92090089]
[1748475984803,0.2362054,107910.0,107900.0,2.47826101]
[1748475985005,0.2362054,107910.0,107900.0,2.92088455]
[1748475985703,0.2362054,107910.0,107900.0,2.91088455]
[1748475986001,0.2362054,107910.0,107900.0,2.91086153]
[1748475987405,0.2362054,107910.0,107900.0,2.85367235]
[1748475987602,0.35969393,107910.0,107900.0,2.46716406]
[1748475987905,0.35969393,107910.0,107900.0,2.90968406]
[1748475988108,0.35969393,107910.0,107900.0,2.90980406]
[1748475988511,0.35969393,107910.0,107900.0,2.74784631]
[1748475988708,0.35969393,107910.0,107900.0,2.81715291]
[1748475989013,0.35969393,107910.0,107900.0,2.76105843]
[1748475990300,0.35969393,107910.0,107900.0,2.70260992]
[1748475990301,0.35354866,107910.0,107900.0,2.70260992]
[1748475990509,0.35354866,107910.0,107900.0,2.30529448]
[1748475990708,0.35354866,107910.0,107900.0,2.32441497]
[1748475990892,0.35354866,107910.0,107900.0,2.32443366]
[1748475991303,0.35354866,107910.0,107900.0,2.31121732]
[1748475991499,0.35354866,107910.0,107900.0,2.26586167]
[1748475991894,0.35354866,107910.0,107900.0,2.26585783]
[1748475992093,0.35354866,107910.0,107900.0,0.54445523]
[1748475992299,0.35354866,107910.0,107900.0,0.6585485]
[1748475992300,0.51163719,107910.0,107900.0,0.6585485]
[1748475992507,0.51163719,107910.0,107900.0,0.65874877]
[1748475992508,0.38814866,107910.0,107900.0,0.65874877]
[1748475993108,0.38814866,107910.0,107900.0,0.74369727]
[1748475993502,0.38814866,107910.0,107900.0,0.69683053]
[1748475993914,0.26466013,107910.0,107900.0,0.69683053]
[1748475994215,0.46186866,107910.0,107900.0,0.68346902]
[1748475994412,0.46186866,107910.0,107900.0,0.69677072]
[1748475994909,0.46186866,107910.0,107900.0,0.75532292]
[1748475995104,0.49636866,107910.0,107900.0,1.19792962]
[1748475995412,0.49636866,107910.0,107900.0,1.23963764]
[1748475995608,0.49636866,107910.0,107900.0,1.23963763]
[1748475996008,0.49636866,107910.0,107900.0,1.23963486]
[1748475996209,0.49636866,107910.0,107900.0,1.23685486]
[1748475996408,0.37288013,107910.0,107900.0,1.19514912]
[1748475996611,0.49636866,107910.0,107900.0,1.19514912]
[1748475996908,0.37288013,107910.0,107900.0,1.19514912]
[1748475997215,0.49636866,107910.0,107900.0,1.19515128]
[1748475997405,0.49636866,107910.0,107900.0,1.19515055]
[1748475997605,0.49636866,107910.0,107900.0,1.19515192]
[1748475998215,0.49636866,107910.0,107900.0,1.19793192]
[1748475998523,0.49636866,107910.0,107900.0,1.23963787]
[1748475998900,0.49636866,107910.0,107900.0,1.23963753]
[1748475999102,0.49636866,107910.0,107900.0,1.32543478]
[1748475999707,0.49636866,107910.0,107900.0,1.23963868]
[1748475999909,0.49636866,107910.0,107900.0,1.23964087]
[1748476000213,0.49636866,107910.0,107900.0,1.32543699]
[1748476000410,0.49636866,107910.0,107900.0,1.31216618]
[1748476001019,0.49636866,107910.0,107900.0,1.3254368]
[1748476001607,0.49636866,107910.0,107900.0,1.28373085]
[1748476001802,0.49636866,107910.0,107900.0,1.32544663]
[1748476002313,0.49636866,107910.0,107900.0,1.32544993]
[1748476002509,0.33838013,107910.0,107900.0,0.88280993]
[1748476002811,0.23006013,107910.0,107900.0,0.8266705]
[1748476003010,0.3444054,107910.0,107900.0,0.91160392]
[1748476003222,0.3444054,107910.0,107900.0,0.9114778]
[1748476003413,0.04400175,107930.0,107920.0,0.1852683]
[1748476003606,0.04400175,107930.0,107920.0,1.59602896]
[1748476003607,0.03531886,107930.0,107920.0,1.59602896]
[1748476003810,0.22056996,107930.0,107920.0,1.86842077]
[1748476004011,0.22068996,107930.0,107920.0,3.13660789]
[1748476004318,0.22068996,107930.0,107920.0,3.12660789]
[1748476004518,0.22068996,107930.0,107920.0,3.21063357]
[1748476004817,0.23068996,107930.0,107920.0,3.21063357]
[1748476005011,0.23868996,107930.0,107920.0,3.21163357]
[1748476005202,0.23868996,107930.0,107920.0,3.19893981]
[1748476005400,0.23868996,107930.0,107920.0,3.21170286]
[1748476005600,0.23868996,107930.0,107920.0,3.21163717]
[1748476005813,0.23868996,107930.0,107920.0,3.21162636]
[1748476006716,0.23868996,107930.0,107920.0,3.11897036]
[1748476007121,0.36217849,107930.0,107920.0,2.67636138]
[1748476007315,0.36217849,107930.0,107920.0,3.11907157]
[1748476007612,0.43417849,107930.0,107920.0,3.11907157]
[1748476008021,0.43417849,107930.0,107920.0,3.11908093]
[1748476008219,0.43417849,107930.0,107920.0,2.67652055]
[1748476008520,0.43417849,107930.0,107920.0,3.17503782]
[1748476008907,0.43417849,107930.0,107920.0,3.17508257]
[1748476009717,0.43417849,107930.0,107920.0,3.07481843]
[1748476009915,0.43417849,107930.0,107920.0,3.07482223]
[1748476010309,0.43417849,107930.0,107920.0,2.99079655]
[1748476010517,0.43417849,107930.0,107920.0,2.97796561]
[1748476010717,0.43417849,107930.0,107920.0,2.99079581]
[1748476011223,0.43417849,107930.0,107920.0,3.07482149]
[1748476011714,0.43417849,107930.0,107920.0,3.12157974]
[1748476011917,0.43417849,107930.0,107920.0,3.02472386]
[1748476012116,0.43417849,107930.0,107920.0,3.07481111]
[1748476012310,0.43417849,107930.0,107920.0,3.03754092]
[1748476012511,0.43417849,107930.0,107920.0,3.07481111]
[1748476012711,0.43417849,107930.0,107920.0,2.63229111]
[1748476013214,0.43417849,107930.0,107920.0,3.07477111]
[1748476013816,0.43417849,107930.0,107920.0,3.07475288]
[1748476014010,0.43417849,107930.0,107920.0,3.07475339]
[1748476014626,0.43417849,107930.0,107920.0,2.99072771]
[1748476014922,0.43417849,107930.0,107920.0,3.07475339]
[1748476015223,0.43417849,107930.0,107920.0,3.06195129]
[1748476015432,0.43417849,107930.0,107920.0,2.99071779]
[1748476015813,0.43417849,107930.0,107920.0,3.03745875]
[1748476016113,0.43417849,107930.0,107920.0,3.03748095]
[1748476016621,0.43417849,107930.0,107920.0,3.02466657]
[1748476016824,0.43417849,107930.0,107920.0,2.95613455]
[1748476017018,0.43417849,107930.0,107920.0,3.00288068]
[1748476017219,0.43417849,107930.0,107920.0,3.0030413]
[1748476017419,0.43417849,107930.0,107920.0,2.99017174]
[1748476017620,0.43417849,107930.0,107920.0,3.03974485]
[1748476018518,0.31068996,107930.0,107920.0,3.03972791]
[1748476018719,0.23868996,107930.0,107920.0,3.16321352]
[1748476018918,0.23856996,107930.0,107920.0,3.15036027]
[1748476019131,0.23868996,107930.0,107920.0,3.16318816]
[1748476019717,0.23868996,107930.0,107920.0,3.11644203]
[1748476020326,0.05331886,107930.0,107920.0,3.11644203]
[1748476020528,0.23856996,107930.0,107920.0,3.11644203]
[1748476020726,0.23868996,107930.0,107920.0,3.20046771]
[1748476021032,0.23868996,107930.0,107920.0,3.07683535]
[1748476021217,0.23868996,107930.0,107920.0,3.20032388]
[1748476021818,0.23868996,107930.0,107920.0,3.30076921]
[1748476022021,0.23868996,107930.0,107920.0,3.30076293]
[1748476022626,0.23868996,107930.0,107920.0,3.30353293]
[1748476023929,0.23868996,107930.0,107920.0,3.31355918]
[1748476024723,0.23868996,107930.0,107920.0,3.25760187]
[1748476025119,0.23868996,107930.0,107920.0,3.13411689]
[1748476025325,0.23868996,107930.0,107920.0,3.13412929]
[1748476025915,0.23868996,107930.0,107920.0,3.13412915]
[1748476026127,0.23868996,107930.0,107920.0,3.13413074]
[1748476026835,0.36217849,107930.0,107920.0,2.69165074]
[1748476027039,0.39717849,107930.0,107920.0,3.17996098]
[1748476027328,0.43167849,107930.0,107920.0,3.14423929]
[1748476027527,0.43167849,107930.0,107920.0,3.14435929]
[1748476027834,0.43067849,107930.0,107920.0,3.14439453]
[1748476028334,0.43067849,107930.0,107920.0,3.14439585]
[1748476029034,0.43067849,107930.0,107920.0,3.08848561]
[1748476029334,0.43067849,107930.0,107920.0,3.08847763]
[1748476029537,0.43067849,107930.0,107920.0,3.08852485]
[1748476030234,0.43067849,107930.0,107920.0,3.08854245]